bitfinex-derivatives/quotes_ETHF0:USTF0_20250507
["timestamp","ask_amount","ask_price","bid_price","bid_amount"]
[1746582996370,1.08701,1840.0,1839.9,6.0038]
[1746582996565,1.08701,1840.0,1839.9,7.09086]
[1746582997673,8.59273,1840.2,1840.1,1.08695]
[1746582998262,8.59273,1840.2,1840.1,1.96015]
[1746582999273,8.59273,1840.2,1840.1,0.8732]
[1746582999969,8.59273,1840.2,1840.1,2.5207]
[1746583000266,10.33553,1840.2,1840.1,2.5207]
[1746583001677,1.08701,1840.0,1839.9,5.42303]
[1746583001874,1.08083136,1840.0,1839.9,7.09083]
[1746583002074,1.08083136,1840.0,1839.9,10.69083]
[1746583004697,8.2078,1840.0,1839.2,14.41170665]
[1746583004871,4.29522,1839.3,1839.2,2.22383793]
[1746583005065,1.08766,1838.9,1838.8,12.68620952]
[1746583005271,8.77546,1838.9,1838.8,11.59449952]
[1746583006976,1.08763,1839.0,1838.8,11.59449952]
[1746583007179,1.08758,1839.1,1838.9,0.8095]
[1746583007474,1.08758,1839.1,1839.0,1.678]
[1746583008175,1.08777,1838.7,1838.6,1.50453348]
[1746583008381,1.08843,1837.6,1837.5,1.6833]
[1746583008577,1.08825,1837.9,1837.8,10.8758]
[1746583008971,1.08836,1837.8,1837.5,1.6833]
[1746583009171,1.08836,1837.8,1837.7,12.29394688]
[1746583009373,3.2078,1837.8,1837.5,1.6833]
[1746583009573,4.29623,1837.6,1837.5,1.6833]
[1746583009780,4.29623,1837.6,1837.5,12.5591]
[1746583010070,3.2078,1837.6,1837.5,22.5591]
[1746583010273,4.29623,1837.6,1837.5,34.85304688]
[1746583010579,4.622,1837.7,1837.5,34.85304688]
[1746583010770,4.622,1837.7,1837.6,23.16974688]
[1746583011173,4.622,1837.7,1837.6,20.8758]
[1746583011778,4.622,1837.7,1837.6,33.16974688]
[1746583013380,4.622,1837.7,1837.6,34.25817688]
[1746583014381,13.46699,1838.0,1837.7,1.08835]
[1746583014583,13.46699,1838.0,1837.8,12.5835]
[1746583014774,13.46699,1838.0,1837.9,1.7077]
[1746583014973,17.3788,1838.0,1836.2,3.2078]
[1746583015277,3.2078,1836.7,1836.0,3.2078]
[1746583015479,3.2078,1836.7,1836.5,12.29394688]
[1746583015975,4.29681,1836.7,1836.6,12.29394688]
[1746583016183,5.93025,1836.7,1836.1,24.2]
[1746583016380,1.08924,1836.3,1836.2,1.7077]
[1746583016579,4.29704,1836.3,1836.2,1.7077]
[1746583017279,4.29704,1836.3,1836.2,24.00164688]
[1746583018080,3.2078,1836.3,1836.2,24.00164688]
[1746583018282,3.2078,1836.3,1835.8,5.93148]
[1746583018283,18.1498,1836.3,1835.2,3.2078]
[1746583018479,3.2078,1836.1,1835.9,1.33366688]
[1746583018672,3.2078,1834.9,1833.7,34.3]
[1746583018871,3.2078,1834.5,1834.0,18.84731579]
[1746583019178,3.2078,1834.3,1834.2,1.09044]
[1746583019369,3.2078,1834.7,1834.0,18.84731579]
[1746583019575,3.2078,1834.6,1834.1,5.448]
[1746583019769,3.2078,1834.6,1834.5,1.09024]
[1746583019977,3.2078,1834.6,1834.4,5.448]
[1746583020169,3.2078,1834.6,1834.2,6.23609302]
[1746583020372,3.2078,1834.6,1834.3,1.6653]
[1746583020577,3.2078,1834.6,1834.5,1.09024]
[1746583020782,0.17950698,1834.8,1834.7,1.09013]
[1746583021079,8.7648,1835.1,1834.7,8.6588]
[1746583021281,8.7648,1835.1,1834.9,1.09]
[1746583021476,3.2078,1835.3,1835.0,2.75527]
[1746583021682,6.65277,1835.4,1835.1,1.0899]
[1746583021883,6.65277,1835.4,1835.0,1.6653]
[1746583021884,3.2078,1835.5,1835.2,2.75513]
[1746583022078,1.08962,1835.6,1835.3,1.08976]
[1746583022275,3.2078,1835.5,1835.4,1.6653]
[1746583022485,4.29747,1835.5,1835.4,1.6653]
[1746583022686,3.2078,1835.5,1835.4,1.6653]
[1746583022980,8.7688,1835.7,1835.4,1.6653]
[1746583023186,3.2078,1835.7,1835.4,2.75499]
[1746583023479,1.08941,1836.0,1835.6,1.0896]
[1746583023679,3.2078,1835.9,1835.7,2.82925]
[1746583023888,9.84712,1836.1,1835.8,1.08947]
[1746583024082,8.7578,1836.1,1835.9,1.7397]
[1746583024384,1.08937,1836.0,1835.9,1.7397]
[1746583024577,8.7578,1836.1,1835.9,1.7397]
[1746583025179,9.84714,1836.1,1835.9,1.7397]
[1746583025794,8.7578,1836.1,1834.0,9.714]
[1746583026081,8.7578,1836.1,1832.2,0.5432]
[1746583026082,1.09064,1833.9,1833.0,3.2078]
[1746583026286,3.2078,1834.0,1833.6,3.2078]
[1746583026485,3.2153,1834.4,1833.7,42.4412]
[1746583026786,3.2078,1834.4,1833.9,4.29838]
[1746583026979,3.2078,1834.4,1834.0,7.9312]
[1746583027379,3.2078,1834.4,1834.1,6.29]
[1746583027577,3.2078,1834.4,1834.2,1.6412]
[1746583027979,3.2078,1834.4,1834.2,7.9312]
[1746583028581,3.2078,1834.4,1834.2,1.6412]
[1746583028782,3.2078,1834.4,1834.2,7.9312]
[1746583029687,3.2078,1834.4,1834.2,1.6412]
[1746583029882,4.29816,1834.4,1834.2,1.6412]
[1746583030089,3.2078,1834.4,1834.2,1.6412]
[1746583030488,4.29816,1834.4,1834.2,1.6412]
[1746583031289,1.09038,1834.3,1834.2,1.6412]
[1746583031588,3.2078,1834.4,1834.2,1.6412]
[1746583031789,1.09038,1834.3,1834.2,1.6412]
[1746583032384,1.09038,1834.3,1834.2,42.4412]
[1746583032589,1.09038,1834.3,1834.2,48.7352]
[1746583034092,3.2078,1834.4,1833.8,1.09063]
[1746583034281,3.2078,1833.4,1831.6,3.2078]
[1746583034485,1.09145,1832.5,1832.4,1.6496]
[1746583034687,3.2078,1832.8,1832.4,42.4496]
[1746583034989,1.09145,1832.5,1832.4,42.4496]
[1746583035190,1.09145,1832.5,1832.4,49.1386]
[1746583035389,4.29923,1832.6,1832.4,49.1386]
[1746583035593,1.09145,1832.5,1832.4,49.1386]
[1746583036188,4.29908,1832.8,1832.5,1.09145]
[1746583036381,3.2078,1832.7,1832.6,1.6011]
[1746583037087,3.2078,1832.7,1832.6,8.2901]
[1746583037298,3.2078,1832.7,1832.4,40.8]
[1746583037299,3.2078,1832.7,1831.8,6.689]
[1746583037485,6.752,1832.9,1832.5,1.6011]
[1746583037792,4.2992,1832.6,1832.5,1.6011]
[1746583038185,4.2992,1832.6,1832.5,42.4011]
[1746583039190,3.2078,1832.6,1832.5,42.4011]
[1746583039395,3.2078,1832.6,1832.5,48.49255]
[1746583039699,3.2078,1832.9,1832.8,1.09128]
[1746583040194,4.2989,1833.1,1832.9,1.09121]
[1746583040397,4.2989,1833.1,1832.6,0.8738]
[1746583040595,3.2078,1832.9,1832.8,1.09123]
[1746583041197,3.2078,1833.3,1833.2,1.09101]
[1746583041493,3.2078,1834.0,1833.0,3.2078]
[1746583041697,1.09065,1833.9,1833.3,2.72745]
[1746583041996,3.2078,1833.7,1833.6,1.0908]
[1746583042392,3.2078,1834.1,1833.4,51.05047]
[1746583042587,3.2078,1834.1,1833.5,7.6601]
[1746583042793,4.29832,1834.1,1833.9,1.0906]
[1746583042996,1.09048,1834.2,1834.0,1.7252]
[1746583043201,4.40722341,1834.3,1834.1,1.0905]
[1746583043393,4.40721341,1834.3,1834.2,1.7252]
[1746583044296,3.31683341,1834.3,1833.9,1.642]
[1746583044494,1.09056,1834.0,1833.9,1.642]
[1746583045399,3.2078,1834.1,1833.9,1.642]
[1746583045587,1.09056,1834.0,1833.9,1.642]
[1746583045791,4.29832,1834.1,1833.9,1.642]
[1746583045992,4.29832,1834.1,1834.0,1.09056]
[1746583046194,4.29832,1834.1,1833.9,2.73259]
[1746583046395,4.29832,1834.1,1833.9,1.642]
[1746583046697,1.09056,1834.0,1833.9,2.7326]
[1746583046892,9.051,1833.8,1832.2,3.2078]
[1746583047094,1.09195,1831.7,1831.2,1.642]
[1746583047287,3.2078,1831.3,1831.2,1.642]
[1746583047694,3.2078,1831.3,1831.2,9.8498]
[1746583047895,3.2078,1831.3,1831.2,45.6498]
[1746583048092,3.2078,1831.3,1831.2,52.7898]
[1746583048791,3.2078,1831.3,1831.2,40.8]
[1746583049102,4.29997,1831.3,1831.2,40.8]
[1746583049300,3.2078,1831.3,1831.2,44.0078]
[1746583050298,3.2078,1830.4,1829.8,10.85242277]
[1746583050491,3.2078,1830.0,1829.8,10.85242277]
[1746583050696,3.2078,1830.0,1829.9,40.8]
[1746583050896,3.2078,1830.1,1829.9,56.56314199]
[1746583051103,3.2078,1830.1,1829.9,48.431]
[1746583051403,1.6578,1830.7,1829.9,48.431]
[1746583051404,3.2078,1830.4,1830.0,7.03916199]
[1746583051601,3.2078,1830.9,1830.6,7.03916199]
[1746583051903,3.2078,1830.8,1830.7,7.03916199]
[1746583052295,3.2078,1830.8,1830.5,7.631]
[1746583052503,3.2078,1830.6,1830.5,7.631]
[1746583052803,3.2078,1830.6,1829.9,44.0078]
[1746583053003,3.2078,1830.3,1830.0,1.09294]
[1746583053198,3.2078,1830.3,1830.1,1.09285]
[1746583053409,3.2078,1830.3,1830.2,7.03916199]
[1746583053599,7.95,1830.8,1830.2,7.03916199]
[1746583053600,3.2078,1830.5,1830.2,7.03916199]
[1746583053793,3.2078,1830.5,1830.3,1.09274]
[1746583053994,3.2078,1830.5,1830.4,7.03916199]
[1746583054199,3.2078,1830.5,1829.9,55.686]
[1746583054405,3.2078,1830.3,1829.9,63.637]
[1746583054601,3.2078,1830.3,1830.2,40.8]
[1746583054798,3.2078,1830.3,1830.2,47.83916199]
[1746583055704,3.2078,1830.3,1830.2,49.53176199]
[1746583056106,3.2078,1830.3,1830.2,50.62459199]
[1746583056496,3.2078,1830.5,1830.2,49.53176199]
[1746583056698,3.2078,1830.5,1830.4,1.09271]
[1746583056900,3.2078,1830.5,1830.4,16.08487199]
[1746583057800,3.2078,1831.0,1830.8,1.09246]
[1746583058000,3.2078,1831.0,1830.9,8.13157199]
[1746583058200,3.2078,1831.2,1830.9,7.03916199]
[1746583058398,3.2078,1831.2,1831.1,8.13145199]
[1746583058601,3.2078,1831.2,1831.1,48.93145199]
[1746583058801,1.7645,1831.7,1831.3,1.09213]
[1746583058802,1.09201,1831.6,1831.3,1.09213]
[1746583058998,1.09205,1831.5,1831.3,7.03916199]
[1746583059202,8.6696,1831.9,1831.3,8.13133199]
[1746583059203,6.06433,1831.6,1831.3,8.13133199]
[1746583059404,2.85653,1831.6,1831.4,7.03916199]
[1746583059709,1.7645,1831.6,1831.4,8.13123199]
[1746583059914,1.7645,1831.6,1831.5,8.13121199]
[1746583060214,3.2078,1831.7,1831.4,7.955]
[1746583060404,3.2078,1831.7,1831.4,16.08623199]
[1746583060606,1.09201,1831.6,1831.4,7.955]
[1746583060803,3.2078,1831.7,1831.5,7.03916199]
[1746583061011,3.2078,1831.7,1831.6,8.13115199]
[1746583061507,3.2078,1831.9,1831.7,1.09193]
[1746583061715,3.2078,1831.9,1831.8,48.93103199]
[1746583062006,4.29961,1831.9,1831.8,40.8]
[1746583062199,2.72976,1831.8,1831.2,7.955]
[1746583062403,3.2078,1831.3,1831.2,14.99416199]
[1746583062608,4.29987,1831.5,1831.3,7.03916199]
[1746583062812,3.2078,1831.5,1831.3,7.03916199]
[1746583063014,6.05796,1831.7,1831.4,8.13127199]
[1746583063308,3.2078,1831.9,1831.6,8.13115199]
[1746583063510,4.29973,1831.7,1831.6,7.03916199]
[1746583063710,1.0919,1831.8,1831.6,7.03916199]
[1746583063910,4.29975,1831.7,1831.5,41.89204]
[1746583064110,3.2078,1831.7,1831.6,7.03916199]
[1746583064309,3.2078,1831.7,1831.5,47.83916199]
[1746583064506,1.7582,1831.6,1831.5,47.83916199]
[1746583064810,1.7582,1831.6,1831.5,40.8]
[1746583065011,3.2078,1831.7,1831.6,1.09199]
[1746583065201,3.2078,1831.7,1831.6,9.82435199]
[1746583065407,1.09187,1831.9,1831.6,9.82435199]
[1746583065408,3.2078,1831.9,1831.8,1.09187]
[1746583065612,3.2078,1831.9,1831.8,8.13103199]
[1746583065910,11.26715,1832.5,1832.0,1.09173]
[1746583065911,3.2078,1832.1,1832.0,1.09173]
[1746583066107,3.2078,1832.1,1832.0,8.13089199]
[1746583067007,1.6565,1832.4,1832.0,8.13089199]
[1746583067008,1.09161,1832.3,1832.0,7.03916199]
[1746583067208,4.29933,1832.4,1832.3,1.09157]
[1746583067408,4.29935,1832.4,1832.2,1.0916]
[1746583067609,4.29935,1832.4,1832.3,7.03916199]
[1746583068004,3.2078,1832.4,1832.1,1.672]
[1746583068211,4.29931,1832.4,1832.3,7.03916199]
[1746583068610,1.09163,1832.2,1832.0,8.75273]
[1746583068811,1.09163,1832.2,1832.1,47.83916199]
[1746583069008,3.2078,1832.2,1832.1,40.8]
[1746583069517,4.29943,1832.2,1832.1,40.8]
[1746583069817,3.2078,1832.2,1832.1,41.89169]
[1746583070016,4.29943,1832.2,1832.1,40.8]
[1746583071018,3.2078,1832.2,1832.1,48.93085199]
[1746583072220,4.29943,1832.2,1832.1,48.93085199]
[1746583072517,3.2078,1832.2,1832.1,48.93085199]
[1746583073816,2.72924,1832.1,1831.3,10.3903]
[1746583074015,3.2078,1831.8,1831.7,8.13109199]
[1746583074212,3.2078,1831.8,1831.7,2.85163]
[1746583074415,3.2078,1831.9,1831.8,1.09187]
[1746583074613,3.2078,1831.9,1831.8,8.75187]
[1746583074817,4.8043,1832.1,1831.8,15.79103199]
[1746583075021,3.2078,1832.1,1832.0,8.13091199]
[1746583076120,1.7582,1832.4,1832.0,8.13091199]
[1746583076121,3.2078,1832.3,1832.2,1.09163]
[1746583076322,3.2078,1832.3,1832.2,8.13079199]
[1746583076515,3.2078,1832.3,1832.2,9.86389199]
[1746583076708,1.09153,1832.4,1832.3,1.09154]
[1746583076915,3.2078,1832.5,1832.4,1.09151]
[1746583077220,4.2993,1832.5,1832.4,7.03916199]
[1746583077417,4.2993,1832.5,1832.4,1.7331]
[1746583077615,1.09154,1832.4,1832.3,1.09157]
[1746583077809,4.2993,1832.5,1832.3,1.09157]
[1746583078022,4.2993,1832.5,1832.4,9.72417199]
[1746583078320,3.2078,1832.5,1832.4,9.72417199]
[1746583078521,4.966,1832.6,1832.5,1.09145]
[1746583078719,4.966,1832.6,1832.5,2.68495]
[1746583078913,6.0574,1832.6,1832.5,1.5935]
[1746583079714,6.0574,1832.6,1832.5,8.63266199]
[1746583080319,6.0574,1832.6,1832.5,9.72411199]
[1746583080517,3.2078,1832.6,1832.5,9.72411199]
[1746583080714,4.2992,1832.6,1832.5,9.72411199]
[1746583080915,3.2078,1832.6,1832.5,9.72411199]
[1746583081925,3.2078,1832.8,1832.7,1.09134]
[1746583082118,3.2078,1832.8,1832.7,7.03916199]
[1746583082319,4.29908,1832.8,1832.7,8.13050199]
[1746583082623,3.2078,1832.8,1832.7,8.13050199]
[1746583083012,4.29908,1832.8,1832.7,8.13050199]
[1746583083211,3.2078,1832.8,1832.7,8.13050199]
[1746583084125,4.2989,1833.1,1833.0,1.09116]
[1746583084516,4.2989,1833.1,1833.0,9.83542199]
[1746583085227,3.2078,1833.1,1833.0,9.83542199]
[1746583086220,4.2989,1833.1,1833.0,9.83542199]
[1746583086621,1.09116,1833.0,1832.9,7.345]
[1746583086820,2.69496,1833.0,1832.9,7.345]
[1746583087211,4.29892,1833.1,1832.9,14.38416199]
[1746583087419,4.29892,1833.1,1833.0,9.74142199]
[1746583087613,4.2989,1833.1,1833.0,8.65026199]
[1746583088120,4.2989,1833.1,1833.0,9.74142199]
[1746583088425,4.2989,1833.1,1833.0,1.6111]
[1746583088614,4.2989,1833.1,1833.0,2.70226]
[1746583088819,4.2989,1833.1,1833.0,1.6111]
[1746583089315,1.09124,1832.9,1832.8,1.09124]
[1746583089518,1.0911,1833.1,1833.0,7.03916199]
[1746583089720,3.2078,1833.1,1833.0,1.09116]
[1746583090120,3.2078,1833.1,1833.0,8.13032199]
[1746583092522,3.2078,1833.1,1833.0,15.17632199]
[1746583093728,5.972,1833.5,1833.4,1.09092]
[1746583093928,10.27065,1833.6,1833.3,7.03916199]
[1746583094129,10.27065,1833.6,1833.5,1.09086]
[1746583094832,3.2078,1833.6,1833.5,8.13002199]
[1746583095329,4.2986,1833.6,1833.5,8.13002199]
[1746583095526,3.2078,1833.6,1833.5,8.13002199]
[1746583098226,4.2986,1833.6,1833.5,1.09086]
[1746583098431,3.2078,1833.6,1833.5,1.09086]
[1746583098932,4.2986,1833.6,1833.5,1.09086]
[1746583099435,3.2078,1833.6,1833.5,1.09086]
[1746583099826,3.2078,1833.6,1833.5,8.13002199]
[1746583105242,3.2078,1833.6,1833.5,14.88702199]
[1746583105433,3.2078,1833.6,1833.4,1.701]
[1746583105637,3.2078,1833.6,1833.2,9.48458]
[1746583105836,1.09081,1833.6,1833.5,1.09086]
[1746583106034,4.29861,1833.6,1833.5,1.09086]
[1746583107839,3.2078,1833.6,1833.5,1.09086]
[1746583108840,4.2986,1833.6,1833.5,1.09086]
[1746583109042,3.2078,1833.6,1833.5,8.13002199]
[1746583109740,3.2078,1833.6,1833.5,9.87752199]
[1746583109943,0.10906909,1833.7,1833.6,1.0908]
[1746583110134,0.10906909,1833.7,1833.6,8.12996199]
[1746583110642,0.10906909,1833.7,1833.6,53.92996199]
[1746583110835,1.6723,1834.0,1833.9,1.09062]
[1746583110836,3.2078,1834.0,1833.9,1.09062]
[1746583111037,3.2078,1834.0,1833.9,8.12978199]
[1746583111237,3.2078,1834.0,1833.9,16.51558199]
[1746583111744,3.2078,1834.0,1833.9,57.31558199]
[1746583111932,3.59920151,1834.1,1834.0,1.09056]
[1746583112137,3.59920151,1834.1,1834.0,9.75852199]
[1746583112342,3.59920151,1834.1,1834.0,10.69252199]
[1746583112543,3.59920151,1834.1,1834.0,51.49252199]
[1746583114639,3.2078,1834.2,1834.1,1.0905]
[1746583114837,3.2078,1834.2,1834.1,9.04946199]
[1746583115039,3.2078,1834.4,1834.3,1.09038]
[1746583115240,3.2078,1834.4,1834.3,48.92954199]
[1746583115645,4.8323,1834.4,1834.3,48.92954199]
[1746583116040,3.2078,1834.4,1834.3,48.92954199]
[1746583118545,3.2078,1834.4,1834.3,55.68454199]
[1746583119938,3.2078,1834.4,1834.3,55.40054199]
[1746583122943,4.8784,1834.7,1834.6,1.09021]
[1746583123241,3.2078,1834.9,1834.7,1.09015]
[1746583123443,3.2078,1834.9,1834.8,2.80649]
[1746583123643,5.24090151,1835.0,1834.9,1.09003]
[1746583123843,5.24090151,1835.0,1834.9,43.60643]
[1746583124837,3.59920151,1835.0,1834.9,43.60643]
[1746583125248,5.24090151,1835.0,1834.9,43.60643]
[1746583126650,5.24090151,1835.0,1834.9,50.64559199]
[1746583126949,1.6417,1835.0,1834.9,50.64559199]
[1746583128253,7.73167,1835.0,1834.9,40.8]
[1746583129256,1.09009,1834.8,1834.7,1.09011]
[1746583129553,4.29789,1834.8,1834.7,1.09011]
[1746583129758,2.72537,1834.7,1834.1,10.96693]
[1746583130054,3.2078,1834.5,1834.4,1.09032]
[1746583130351,5.972,1834.7,1834.6,8.12937199]
[1746583130551,2.82328,1834.9,1834.8,1.09009]
[1746583130854,1.7332,1834.9,1834.8,8.12925199]
[1746583131045,1.7332,1834.9,1834.8,1.09009]
[1746583131551,3.2078,1835.0,1834.9,1.09003]
[1746583131754,3.2078,1835.0,1834.9,2.68543]
[1746583132349,3.2078,1835.0,1834.9,9.72459199]
[1746583132553,4.29777,1835.0,1834.9,9.72459199]
[1746583132755,3.2078,1835.0,1834.9,9.72459199]
[1746583133155,5.98777,1835.0,1834.9,2.68543]
[1746583133350,4.8978,1835.0,1834.9,1.09003]
[1746583133557,5.98777,1835.0,1834.9,1.09003]
[1746583135259,4.8978,1835.0,1834.9,1.09003]
[1746583135951,4.8978,1835.0,1834.5,6.469]
[1746583136155,1.09006,1834.9,1834.8,1.09005]
[1746583136456,1.09009,1834.8,1834.7,8.12926199]
[1746583136650,3.2078,1834.8,1834.7,1.0901]
[1746583136957,3.2078,1834.8,1834.7,8.12926199]
[1746583137750,3.2078,1835.0,1834.7,9.76442199]
[1746583137963,3.2078,1835.0,1834.9,1.09003]
[1746583138261,3.2078,1835.0,1834.9,14.33419199]
[1746583138756,3.2078,1835.0,1834.9,15.96009199]
[1746583139746,3.2078,1835.2,1835.0,1.08997]
[1746583139956,3.2078,1835.2,1835.1,9.75497199]
[1746583141055,4.29765,1835.2,1835.1,9.75497199]
[1746583142460,3.2078,1835.2,1835.1,9.75497199]
[1746583143360,4.29765,1835.2,1835.1,9.75497199]
[1746583143562,6.02615,1835.2,1835.1,9.75497199]
[1746583144264,3.2078,1835.2,1835.1,9.75497199]
[1746583150064,4.29765,1835.2,1835.1,9.75497199]
[1746583151463,3.2078,1835.2,1835.1,9.75497199]
[1746583151863,4.29765,1835.2,1835.1,9.75497199]
[1746583152056,1.08995,1835.1,1835.0,1.08993]
[1746583152257,2.73245,1835.1,1835.0,8.12909199]
[1746583152458,1.09012,1834.8,1834.7,1.09012]
[1746583152659,4.29785,1834.9,1834.8,1.09009]
[1746583152965,3.19664007,1834.9,1834.8,15.71425199]
[1746583153159,3.2078,1835.2,1835.1,1.08985]
[1746583153366,3.2078,1835.2,1835.1,8.12901199]
[1746583154258,8.46240151,1835.5,1835.2,1.08985]
[1746583154463,9.55207151,1835.5,1835.4,8.12889199]
[1746583154857,9.55207151,1835.5,1835.4,1.08973]
[1746583156569,5.95287,1835.5,1835.4,1.08973]
[1746583157067,4.8632,1835.5,1835.4,1.08973]
[1746583157264,5.95287,1835.5,1835.4,1.08973]
[1746583159472,4.8632,1835.5,1835.4,1.08973]
[1746583159663,3.2078,1835.5,1835.4,8.12889199]
[1746583160969,3.2078,1835.5,1835.4,48.92889199]
[1746583161468,3.59920151,1835.6,1835.5,1.08967]
[1746583161670,3.59920151,1835.6,1835.5,8.12883199]
[1746583164574,1.08967,1835.5,1835.4,41.88969]
[1746583164775,1.7228,1835.5,1835.4,48.92885199]
[1746583165072,2.81247,1835.5,1835.4,48.92885199]
[1746583168775,7.06176,1835.4,1835.3,8.12895199]
[1746583168969,17.75688529,1835.5,1835.4,1.08973]
[1746583169169,11.99086529,1835.5,1835.4,8.12889199]
[1746583169475,9.30139529,1835.5,1835.4,8.12889199]
[1746583170269,9.30139529,1835.5,1835.4,9.88069199]
[1746583172471,6.80143971,1835.5,1835.4,9.88069199]
[1746583173878,3.59363971,1835.5,1835.4,9.88069199]
[1746583175476,3.59363971,1835.5,1835.4,13.08849199]
[1746583175979,3.59197788,1835.8,1835.7,1.08955]
[1746583176181,3.59197788,1835.8,1835.7,14.07071199]
[1746583176382,3.59197788,1835.8,1835.7,15.81451199]
[1746583176973,6.79977788,1835.8,1835.7,15.81451199]
[1746583178071,7.88926788,1835.8,1835.7,15.81451199]
[1746583178581,8.43567788,1835.8,1835.7,5.942]
[1746583178774,9.52516788,1835.8,1835.7,7.03155]
[1746583178977,8.43567788,1835.8,1835.7,7.03155]
[1746583179478,8.43567788,1835.8,1835.7,14.07071199]
[1746583179783,4.8437,1835.8,1835.7,14.07071199]
[1746583180183,4.29729,1835.8,1835.7,14.07071199]
[1746583180384,3.2078,1835.8,1835.7,14.07071199]
[1746583181078,4.29729,1835.8,1835.7,14.07071199]
[1746583181380,4.29729,1835.8,1835.7,7.03155]
[1746583181982,3.2078,1835.8,1835.7,7.03155]
[1746583182181,4.29729,1835.8,1835.7,7.03155]
[1746583183683,3.2078,1835.8,1835.7,14.07071199]
[1746583184284,5.93307,1836.0,1835.9,1.08943]
[1746583184472,4.8437,1836.0,1835.9,1.08943]
[1746583184676,5.93307,1836.0,1835.9,1.08943]
[1746583185079,1.08949,1835.9,1835.8,1.08947]
[1746583185285,2.83869,1835.9,1835.8,1.08947]
[1746583186085,6.43869,1835.9,1835.8,1.08947]
[1746583186385,6.43867,1835.9,1835.8,1.08949]
[1746583186586,12.41067,1835.9,1835.8,1.08949]
[1746583188980,1.08949,1835.8,1835.7,7.03151]
[1746583189184,5.91839,1835.8,1835.7,7.03151]
[1746583189587,4.8289,1835.8,1835.7,7.03151]
[1746583189780,4.8289,1835.8,1835.7,14.07067199]
[1746583190985,5.972,1835.9,1835.8,1.08949]
[1746583191286,5.972,1835.9,1835.8,9.80235199]
[1746583191584,7.06143,1835.9,1835.8,9.80235199]
[1746583191783,8.74043,1835.9,1835.8,9.80235199]
[1746583192089,1.08962,1835.7,1835.6,1.08959]
[1746583192387,4.29742,1835.7,1835.6,1.08959]
[1746583193089,1.08967,1835.5,1835.4,6.7717]
[1746583193384,4.29747,1835.5,1835.4,6.7717]
[1746583194084,2.72456,1835.3,1834.7,10.85242277]
[1746583194290,1.09009,1834.8,1834.7,10.85242277]
[1746583194584,9.95389,1834.8,1834.7,10.85242277]
[1746583194789,14.95389,1834.8,1834.7,10.85242277]
[1746583194980,1.09026,1834.5,1834.4,51.65242277]
[1746583195180,7.89806,1834.5,1834.4,51.65242277]
[1746583195381,6.8078,1834.5,1834.4,59.78190476]
[1746583195581,7.89806,1834.5,1834.4,51.65242277]
[1746583196083,4.29806,1834.5,1834.4,51.65242277]
[1746583196589,3.2078,1834.5,1834.4,52.74274277]
[1746583196983,5.89356,1834.5,1834.4,51.65242277]
[1746583197490,4.8033,1834.5,1834.4,52.74274277]
[1746583198791,4.8033,1834.5,1834.4,41.89032]
[1746583199081,3.2078,1834.5,1834.4,8.12948199]
[1746583199285,2.72582,1834.4,1833.2,1.7587]
[1746583199479,4.29863,1833.6,1833.5,7.01553199]
[1746583199686,1.09089,1833.5,1833.3,1.09093]
[1746583199876,2.75329,1833.5,1833.4,7.01553199]
[1746583200084,6.35329,1833.5,1833.4,47.81553199]
[1746583200385,3.6,1833.5,1833.4,53.90645199]
[1746583200583,4.29838,1834.0,1833.5,2.72706]
[1746583200785,4.29838,1834.0,1833.9,7.01553199]
[1746583200987,3.2078,1834.0,1833.9,8.10615199]
[1746583201181,4.8702,1834.2,1834.1,1.0905]
[1746583201386,3.2078,1834.4,1834.3,1.09038]
[1746583201584,4.29812,1834.4,1834.3,7.01553199]
[1746583202179,10.93372,1834.4,1833.5,5.93493]
[1746583202382,4.29839,1834.0,1833.8,2.81254]
[1746583202588,4.29839,1834.0,1833.9,1.7219]
[1746583202800,4.29839,1834.0,1833.9,8.73743199]
[1746583202992,1.09068,1833.8,1833.7,1.0907]
[1746583203192,4.29852,1833.8,1833.7,8.10627199]
[1746583203692,3.2078,1833.8,1833.7,8.10627199]
[1746583204087,4.29848,1833.8,1833.7,7.01553199]
[1746583204587,1.09086,1833.5,1833.4,47.57491]
[1746583204785,4.29866,1833.5,1833.4,49.29681]
[1746583204981,3.2078,1833.5,1833.1,3.2078]
[1746583205190,5.97512,1833.4,1833.3,7.01553199]
[1746583205690,4.8842,1833.4,1833.3,7.01553199]
[1746583205887,3.2078,1833.4,1833.3,8.10651199]
[1746583206080,9.572,1833.6,1833.5,1.09086]
[1746583206284,5.972,1833.6,1833.5,8.10639199]
[1746583206892,5.972,1833.6,1833.5,9.77439199]
[1746583207192,5.972,1833.6,1833.5,13.37439199]
[1746583207691,3.2078,1833.9,1833.8,1.09068]
[1746583207892,3.2078,1833.9,1833.8,8.10621199]
[1746583208089,3.2078,1833.9,1833.8,13.79221199]
[1746583209296,4.29832,1834.1,1833.8,12.70153199]
[1746583209496,1.0908,1833.6,1833.5,0.8181]
[1746583209794,4.2986,1833.6,1833.5,0.8181]
[1746583210094,1.09086,1833.5,1833.4,1.09089]
[1746583210301,2.69316,1833.5,1833.4,1.09089]
[1746583210499,2.69316,1833.5,1833.4,41.89089]
[1746583210793,1.6023,1833.5,1833.4,47.63859199]
[1746583211089,2.69316,1833.5,1833.4,47.63859199]
[1746583211794,1.6023,1833.5,1833.4,47.63859199]
[1746583211996,2.69316,1833.5,1833.4,47.63859199]
[1746583212195,1.6023,1833.5,1833.4,47.63859199]
[1746583212494,3.2078,1834.0,1833.7,1.09074]
[1746583212695,3.2078,1834.0,1833.9,6.83832199]
[1746583213392,3.2078,1834.4,1834.0,1.09056]
[1746583213586,8.9888,1834.8,1834.6,1.0902]
[1746583213784,1.6482,1834.7,1834.6,1.0902]